[Event "*** Titled Tuesday Blitz"]
[Site "Chess.com"]
[Date "2020.11.10"]
[Round "3"]
[White "parintele_chess"]
[Black "Basyak97"]
[Result "0-1"]
[WhiteElo "2136"]
[BlackElo "2337"]
[TimeControl "180+1"]
[EndTime "10:32:22 PST"]
[Termination "Basyak97 won on time"]

1. d4 {[%clk 0:03:00]} 1... Nf6 {[%clk 0:02:58.9]} 2. c4 {[%clk 0:02:59.8]} 2...
c5 {[%clk 0:02:58]} 3. d5 {[%clk 0:02:59.9]} 3... e6 {[%clk 0:02:56.4]} 4. Nc3
{[%clk 0:03:00]} 4... exd5 {[%clk 0:02:57.1]} 5. cxd5 {[%clk 0:03:00.9]} 5... d6
{[%clk 0:02:57.7]} 6. e4 {[%clk 0:03:01.1]} 6... g6 {[%clk 0:02:58.1]} 7. f4
{[%clk 0:03:01.1]} 7... Bg7 {[%clk 0:02:58.3]} 8. Bb5+ {[%clk 0:03:01.7]} 8...
Nfd7 {[%clk 0:02:57.6]} 9. Nf3 {[%clk 0:03:02]} 9... O-O {[%clk 0:02:57.7]} 10.
O-O {[%clk 0:03:00.6]} 10... a6 {[%clk 0:02:54.8]} 11. Bd3 {[%clk 0:03:00.7]}
11... b5 {[%clk 0:02:55.7]} 12. Qe2 {[%clk 0:02:55.6]} 12... Qc7 {[%clk
0:02:41.6]} 13. Be3 {[%clk 0:02:49.2]} 13... c4 {[%clk 0:02:38.1]} 14. Bc2
{[%clk 0:02:47]} 14... Bb7 {[%clk 0:02:36]} 15. a3 {[%clk 0:02:40.6]} 15... Re8
{[%clk 0:02:35.1]} 16. Bd4 {[%clk 0:02:36.1]} 16... Bxd4+ {[%clk 0:02:31]} 17.
Nxd4 {[%clk 0:02:36.8]} 17... Qb6 {[%clk 0:02:27.9]} 18. Qf2 {[%clk 0:02:36.2]}
18... Nf6 {[%clk 0:02:18.7]} 19. f5 {[%clk 0:02:15.3]} 19... Ng4 {[%clk
0:02:14.8]} 20. Qd2 {[%clk 0:02:09.2]} 20... Nd7 {[%clk 0:02:14.6]} 21. h3
{[%clk 0:02:02]} 21... Nge5 {[%clk 0:02:13.7]} 22. fxg6 {[%clk 0:01:57.8]} 22...
hxg6 {[%clk 0:02:12.4]} 23. Kh1 {[%clk 0:01:55.9]} 23... Qd8 {[%clk 0:01:29.5]}
24. Qh6 {[%clk 0:01:48.5]} 24... Qe7 {[%clk 0:01:25.7]} 25. Rf4 {[%clk
0:01:08.7]} 25... Qf8 {[%clk 0:01:24]} 26. Qg5 {[%clk 0:01:08.5]} 26... Qg7
{[%clk 0:01:22.4]} 27. Raf1 {[%clk 0:01:06.4]} 27... Nc5 {[%clk 0:01:06.5]} 28.
Rf6 {[%clk 0:00:40.3]} 28... Rad8 {[%clk 0:01:01.9]} 29. Nce2 {[%clk 0:00:36.7]}
29... Ncd3 {[%clk 0:00:57.9]} 30. Ng3 {[%clk 0:00:32.6]} 30... Rd7 {[%clk
0:00:53.6]} 31. Bxd3 {[%clk 0:00:29.2]} 31... cxd3 {[%clk 0:00:53.1]} 32. Qh4
{[%clk 0:00:17.3]} 32... Rc7 {[%clk 0:00:47.5]} 33. Ngf5 {[%clk 0:00:15.7]}
33... gxf5 {[%clk 0:00:37.6]} 34. Nxf5 {[%clk 0:00:16.6]} 34... Ng6 {[%clk
0:00:30.9]} 35. Qg5 {[%clk 0:00:11.2]} 35... Qh7 {[%clk 0:00:21.9]} 36. Nh6+
{[%clk 0:00:11]} 36... Kf8 {[%clk 0:00:21.8]} 37. Rxf7+ {[%clk 0:00:10.9]} 37...
Rxf7 {[%clk 0:00:21.8]} 38. Rxf7+ {[%clk 0:00:10.8]} 38... Qxf7 {[%clk
0:00:22.7]} 39. Nxf7 {[%clk 0:00:11.7]} 39... Kxf7 {[%clk 0:00:23.5]} 40. Qf5+
{[%clk 0:00:11.8]} 40... Kg7 {[%clk 0:00:20.7]} 41. Qd7+ {[%clk 0:00:09.4]}
41... Re7 {[%clk 0:00:20.8]} 42. Qg4 {[%clk 0:00:07.9]} 42... Rc7 {[%clk
0:00:18.8]} 43. Qd1 {[%clk 0:00:07.2]} 43... Ne5 {[%clk 0:00:19.2]} 44. Qf1
{[%clk 0:00:06.3]} 44... Rf7 {[%clk 0:00:19.5]} 45. Qd1 {[%clk 0:00:04.8]} 45...
Rf2 {[%clk 0:00:18.2]} 46. Qc1 {[%clk 0:00:02.3]} 46... d2 {[%clk 0:00:18]} 47.
Qc7+ {[%clk 0:00:02.8]} 47... Nf7 {[%clk 0:00:16.3]} 0-1

[Event "*** Titled Tuesday Blitz"]
[Site "Chess.com"]
[Date "2020.11.10"]
[Round "3"]
[White "canary2016"]
[Black "Sueetin"]
[Result "0-1"]
[WhiteElo "2004"]
[BlackElo "2277"]
[TimeControl "180+1"]
[EndTime "10:32:22 PST"]
[Termination "Sueetin won by checkmate"]

1. d4 {[%clk 0:03:00.9]} 1... Nf6 {[%clk 0:02:59.8]} 2. Bf4 {[%clk 0:03:00.2]}
2... d5 {[%clk 0:02:57.2]} 3. e3 {[%clk 0:02:59.4]} 3... c5 {[%clk 0:02:56.4]}
4. c3 {[%clk 0:02:59]} 4... Nc6 {[%clk 0:02:53.2]} 5. Nd2 {[%clk 0:02:58.9]}
5... Bf5 {[%clk 0:02:53]} 6. Ngf3 {[%clk 0:02:58.1]} 6... Qb6 {[%clk 0:02:47.3]}
7. Nh4 {[%clk 0:02:52.4]} 7... Be4 {[%clk 0:02:40.6]} 8. f3 {[%clk 0:02:43.4]}
8... Bg6 {[%clk 0:02:37]} 9. Nxg6 {[%clk 0:02:43.3]} 9... hxg6 {[%clk
0:02:37.2]} 10. Qb3 {[%clk 0:02:41.3]} 10... c4 {[%clk 0:02:09.6]} 11. Qc2
{[%clk 0:02:39.1]} 11... Nh5 {[%clk 0:01:56.3]} 12. b3 {[%clk 0:02:21.2]} 12...
Nxf4 {[%clk 0:01:53.5]} 13. exf4 {[%clk 0:02:20.8]} 13... cxb3 {[%clk
0:01:52.2]} 14. axb3 {[%clk 0:02:20.2]} 14... e6 {[%clk 0:01:51]} 15. Bd3 {[%clk
0:02:20.1]} 15... Bd6 {[%clk 0:01:50.6]} 16. g3 {[%clk 0:02:18.9]} 16... g5
{[%clk 0:01:49.7]} 17. c4 {[%clk 0:02:12.7]} 17... Nb4 {[%clk 0:01:46.6]} 18.
Qc3 {[%clk 0:02:09.7]} 18... Nxd3+ {[%clk 0:01:02.1]} 19. Qxd3 {[%clk
0:02:08.7]} 19... dxc4 {[%clk 0:00:35.6]} 20. bxc4 {[%clk 0:02:02.9]} 20... Qc7
{[%clk 0:00:34.9]} 21. c5 {[%clk 0:01:59.8]} 21... Be7 {[%clk 0:00:33.3]} 22.
fxg5 {[%clk 0:01:59.1]} 22... Bxg5 {[%clk 0:00:29.3]} 23. O-O {[%clk 0:01:56.8]}
23... Kf8 {[%clk 0:00:22.3]} 24. Ne4 {[%clk 0:01:55.6]} 24... Bf6 {[%clk
0:00:18]} 25. Rad1 {[%clk 0:01:47]} 25... Rd8 {[%clk 0:00:16.5]} 26. Nxf6 {[%clk
0:01:20.6]} 26... gxf6 {[%clk 0:00:16.2]} 27. Qe4 {[%clk 0:01:19.2]} 27... Rd5
{[%clk 0:00:15.4]} 28. Ra1 {[%clk 0:01:13.1]} 28... a6 {[%clk 0:00:15.2]} 29.
Rab1 {[%clk 0:01:09.8]} 29... Qd7 {[%clk 0:00:14.2]} 30. Rfd1 {[%clk 0:01:07]}
30... Kg7 {[%clk 0:00:11.7]} 31. Qg4+ {[%clk 0:01:05.8]} 31... Rg5 {[%clk
0:00:11.8]} 32. Qe4 {[%clk 0:01:04.7]} 32... Rd5 {[%clk 0:00:10]} 33. Qg4+
{[%clk 0:01:04.1]} 33... Kf8 {[%clk 0:00:08]} 34. Rb6 {[%clk 0:01:00.9]} 34...
Rxc5 {[%clk 0:00:05.8]} 35. Rdb1 {[%clk 0:00:47.1]} 35... Rc4 {[%clk 0:00:03.1]}
36. Rxb7 {[%clk 0:00:42.8]} 36... Qxd4+ {[%clk 0:00:03.2]} 37. Qxd4 {[%clk
0:00:42.4]} 37... Rxd4 {[%clk 0:00:04.1]} 38. Rb8+ {[%clk 0:00:41]} 38... Kg7
{[%clk 0:00:04.3]} 39. R8b6 {[%clk 0:00:40.3]} 39... Ra8 {[%clk 0:00:02.7]} 40.
Ra1 {[%clk 0:00:39.6]} 40... a5 {[%clk 0:00:03]} 41. Rb5 {[%clk 0:00:38.4]}
41... a4 {[%clk 0:00:02.3]} 42. Kg2 {[%clk 0:00:36.2]} 42... Rd2+ {[%clk
0:00:02.5]} 43. Kg1 {[%clk 0:00:35.4]} 43... a3 {[%clk 0:00:03.4]} 44. Rb3
{[%clk 0:00:28.4]} 44... a2 {[%clk 0:00:03.5]} 45. h4 {[%clk 0:00:26.3]} 45...
Rc8 {[%clk 0:00:03.3]} 46. Ra3 {[%clk 0:00:07.4]} 46... Rcc2 {[%clk 0:00:03.7]}
47. g4 {[%clk 0:00:05.9]} 47... Rb2 {[%clk 0:00:03.9]} 48. h5 {[%clk 0:00:03.7]}
48... Rb1+ {[%clk 0:00:04.3]} 49. Rxb1 {[%clk 0:00:01.8]} 49... axb1=Q# {[%clk
0:00:05.2]} 0-1

[Event "*** Titled Tuesday Blitz"]
[Site "Chess.com"]
[Date "2020.11.10"]
[Round "3"]
[White "Gusarov91"]
[Black "GukeshDommaraju"]
[Result "0-1"]
[WhiteElo "2625"]
[BlackElo "2865"]
[TimeControl "180+1"]
[EndTime "10:32:23 PST"]
[Termination "GukeshDommaraju won by checkmate"]

1. d4 {[%clk 0:03:00]} 1... d5 {[%clk 0:02:59.7]} 2. Nf3 {[%clk 0:03:00.2]} 2...
Nf6 {[%clk 0:02:59.7]} 3. c4 {[%clk 0:03:00.6]} 3... e6 {[%clk 0:02:59.7]} 4. g3
{[%clk 0:03:00.2]} 4... dxc4 {[%clk 0:02:59.3]} 5. Qa4+ {[%clk 0:03:00.2]} 5...
Nbd7 {[%clk 0:02:58.7]} 6. Bg2 {[%clk 0:02:59.8]} 6... a6 {[%clk 0:02:58.4]} 7.
Qxc4 {[%clk 0:02:59.6]} 7... b5 {[%clk 0:02:58.5]} 8. Qc6 {[%clk 0:02:59.5]}
8... Rb8 {[%clk 0:02:55.8]} 9. Bf4 {[%clk 0:02:59.6]} 9... Nd5 {[%clk
0:02:32.1]} 10. Bd2 {[%clk 0:02:56.1]} 10... Bb7 {[%clk 0:01:57.5]} 11. Qc1
{[%clk 0:02:55.5]} 11... Be7 {[%clk 0:01:54.2]} 12. O-O {[%clk 0:02:54.7]} 12...
O-O {[%clk 0:01:54]} 13. e4 {[%clk 0:02:47.1]} 13... N5f6 {[%clk 0:01:53.4]} 14.
Bf4 {[%clk 0:02:41.1]} 14... Rc8 {[%clk 0:01:46.6]} 15. Ne5 {[%clk 0:01:55.9]}
15... c5 {[%clk 0:01:39.9]} 16. Nxd7 {[%clk 0:01:47.6]} 16... Qxd7 {[%clk
0:01:37.9]} 17. dxc5 {[%clk 0:01:45.7]} 17... Bxc5 {[%clk 0:01:34.4]} 18. Qe1
{[%clk 0:01:41.3]} 18... Bd4 {[%clk 0:01:22.4]} 19. Nc3 {[%clk 0:01:41.5]} 19...
b4 {[%clk 0:01:22.1]} 20. Ne2 {[%clk 0:01:35.9]} 20... Bxb2 {[%clk 0:01:13.6]}
21. Rb1 {[%clk 0:01:33.4]} 21... Ba3 {[%clk 0:01:12.3]} 22. f3 {[%clk
0:01:25.8]} 22... Rc2 {[%clk 0:01:06.6]} 23. Be3 {[%clk 0:01:20.7]} 23... Rfc8
{[%clk 0:00:42.3]} 24. Rd1 {[%clk 0:01:15.8]} 24... Qe7 {[%clk 0:00:36.8]} 25.
Nc1 {[%clk 0:01:09.5]} 25... h6 {[%clk 0:00:34.1]} 26. Kh1 {[%clk 0:01:06.5]}
26... a5 {[%clk 0:00:33.7]} 27. g4 {[%clk 0:01:03.5]} 27... Ba6 {[%clk
0:00:33.2]} 28. Rg1 {[%clk 0:01:02.3]} 28... Nd7 {[%clk 0:00:30]} 29. Nb3 {[%clk
0:01:00.9]} 29... a4 {[%clk 0:00:28.2]} 30. Nd4 {[%clk 0:00:56.8]} 30... Rxa2
{[%clk 0:00:28.1]} 31. f4 {[%clk 0:00:57.4]} 31... b3 {[%clk 0:00:25]} 32. e5
{[%clk 0:00:57.9]} 32... Bb4 {[%clk 0:00:24.7]} 33. Qg3 {[%clk 0:00:56.1]} 33...
b2 {[%clk 0:00:15.3]} 34. f5 {[%clk 0:00:55.2]} 34... exf5 {[%clk 0:00:15.3]}
35. Nxf5 {[%clk 0:00:55.4]} 35... Qxe5 {[%clk 0:00:15.1]} 36. Bf4 {[%clk
0:00:56]} 36... Qe6 {[%clk 0:00:13.8]} 37. Nd4 {[%clk 0:00:43]} 37... Qc4 {[%clk
0:00:12.4]} 38. Nc6 {[%clk 0:00:39.5]} 38... Rxc6 {[%clk 0:00:11.7]} 39. Rxd7
{[%clk 0:00:39.7]} 39... Rc8 {[%clk 0:00:11.3]} 40. Bd5 {[%clk 0:00:38.1]} 40...
Bb7 {[%clk 0:00:09.3]} 41. Qf3 {[%clk 0:00:28.5]} 41... Bxd5 {[%clk 0:00:08.5]}
42. Rxd5 {[%clk 0:00:29.4]} 42... Ra1 {[%clk 0:00:08.7]} 43. Rdd1 {[%clk
0:00:29.1]} 43... Rxd1 {[%clk 0:00:07.8]} 44. Rxd1 {[%clk 0:00:29.1]} 44... a3
{[%clk 0:00:08.1]} 45. g5 {[%clk 0:00:26.1]} 45... a2 {[%clk 0:00:07.6]} 46.
gxh6 {[%clk 0:00:26.6]} 46... b1=Q {[%clk 0:00:07.9]} 47. Bc1 {[%clk 0:00:24.3]}
47... Qbxc1 {[%clk 0:00:06.6]} 48. Rxc1 {[%clk 0:00:24.6]} 48... Qxc1+ {[%clk
0:00:06.6]} 49. Kg2 {[%clk 0:00:25.2]} 49... Qxh6 {[%clk 0:00:06.6]} 50. Qb7
{[%clk 0:00:24]} 50... Qg6+ {[%clk 0:00:07.5]} 51. Kf2 {[%clk 0:00:24.1]} 51...
Rf8 {[%clk 0:00:07.9]} 52. Qxb4 {[%clk 0:00:23.8]} 52... a1=Q {[%clk 0:00:08]}
53. Qd4 {[%clk 0:00:23.8]} 53... Qxd4+ {[%clk 0:00:07]} 54. Kf3 {[%clk
0:00:24.7]} 54... Qgg4# {[%clk 0:00:06.9]} 0-1

[Event "*** Titled Tuesday Blitz"]
[Site "Chess.com"]
[Date "2020.11.10"]
[Round "3"]
[White "Pavlov_Sergey"]
[Black "RD4ever"]
[Result "1/2-1/2"]
[WhiteElo "2620"]
[BlackElo "2822"]
[TimeControl "180+1"]
[EndTime "10:32:23 PST"]
[Termination "Game drawn by repetition"]

1. c4 {[%clk 0:02:59.6]} 1... e5 {[%clk 0:02:57.6]} 2. Nc3 {[%clk 0:02:59.7]}
2... Nc6 {[%clk 0:02:57.8]} 3. e3 {[%clk 0:02:58.9]} 3... Nf6 {[%clk 0:02:55]}
4. Nf3 {[%clk 0:02:58.2]} 4... Bb4 {[%clk 0:02:54.8]} 5. Qc2 {[%clk 0:02:58.5]}
5... Bxc3 {[%clk 0:02:54]} 6. Qxc3 {[%clk 0:02:58.1]} 6... Qe7 {[%clk
0:02:54.7]} 7. b3 {[%clk 0:02:58.5]} 7... d5 {[%clk 0:02:40.9]} 8. d4 {[%clk
0:02:57.1]} 8... exd4 {[%clk 0:02:27.8]} 9. Nxd4 {[%clk 0:02:56.4]} 9... Nxd4
{[%clk 0:02:28.1]} 10. Qxd4 {[%clk 0:02:56.3]} 10... c5 {[%clk 0:02:28.5]} 11.
Qf4 {[%clk 0:02:56.2]} 11... O-O {[%clk 0:02:20.6]} 12. Bb2 {[%clk 0:02:55.8]}
12... d4 {[%clk 0:02:21]} 13. O-O-O {[%clk 0:02:55.2]} 13... dxe3 {[%clk
0:02:15.6]} 14. fxe3 {[%clk 0:02:54.1]} 14... Ng4 {[%clk 0:02:09.7]} 15. Re1
{[%clk 0:02:51.1]} 15... f6 {[%clk 0:02:08.2]} 16. Bd3 {[%clk 0:02:48.5]} 16...
Bd7 {[%clk 0:02:03.3]} 17. h3 {[%clk 0:02:24.3]} 17... Ne5 {[%clk 0:02:02]} 18.
Bc2 {[%clk 0:02:24.7]} 18... Rfe8 {[%clk 0:01:53.3]} 19. g4 {[%clk 0:02:18.7]}
19... Bc6 {[%clk 0:01:50.1]} 20. Rhf1 {[%clk 0:02:02.6]} 20... Ng6 {[%clk
0:01:49.9]} 21. Qf5 {[%clk 0:01:45.7]} 21... b6 {[%clk 0:01:31.2]} 22. h4 {[%clk
0:01:04.5]} 22... Be4 {[%clk 0:01:28.1]} 23. Bxe4 {[%clk 0:01:04.9]} 23... Qxe4
{[%clk 0:01:29]} 24. h5 {[%clk 0:01:05.1]} 24... Qxf5 {[%clk 0:01:15.5]} 25.
Rxf5 {[%clk 0:00:52.5]} 25... Ne7 {[%clk 0:01:13.2]} 26. Rf4 {[%clk 0:00:44.6]}
26... h6 {[%clk 0:01:13.6]} 27. Rd1 {[%clk 0:00:35.8]} 27... Rad8 {[%clk
0:01:10.2]} 28. Re4 {[%clk 0:00:30.8]} 28... Kf7 {[%clk 0:01:10.3]} 29. Bc3
{[%clk 0:00:26]} 29... Rxd1+ {[%clk 0:01:09.7]} 30. Kxd1 {[%clk 0:00:26.5]}
30... Rd8+ {[%clk 0:01:10.6]} 31. Ke2 {[%clk 0:00:26.5]} 31... Nc6 {[%clk
0:01:08.4]} 32. a3 {[%clk 0:00:26.2]} 32... a6 {[%clk 0:00:49.9]} 33. b4 {[%clk
0:00:24.2]} 33... cxb4 {[%clk 0:00:50.2]} 34. axb4 {[%clk 0:00:24.5]} 34... b5
{[%clk 0:00:47.6]} 35. Rf4 {[%clk 0:00:22.9]} 35... Rd7 {[%clk 0:00:44.1]} 36.
cxb5 {[%clk 0:00:22.3]} 36... axb5 {[%clk 0:00:43.7]} 37. Rf5 {[%clk 0:00:23.2]}
37... Rb7 {[%clk 0:00:44]} 38. Rc5 {[%clk 0:00:23.2]} 38... Ne7 {[%clk
0:00:42.6]} 39. e4 {[%clk 0:00:22.5]} 39... Ke6 {[%clk 0:00:42.8]} 40. e5 {[%clk
0:00:22.2]} 40... f5 {[%clk 0:00:33.7]} 41. Kf3 {[%clk 0:00:22.1]} 41... fxg4+
{[%clk 0:00:31.8]} 42. Kxg4 {[%clk 0:00:22.1]} 42... Rb6 {[%clk 0:00:30.9]} 43.
Bd4 {[%clk 0:00:21.1]} 43... Rc6 {[%clk 0:00:29.5]} 44. Rxb5 {[%clk 0:00:19.7]}
44... Rc4 {[%clk 0:00:29.5]} 45. Rb6+ {[%clk 0:00:17.9]} 45... Nc6 {[%clk
0:00:16.4]} 46. b5 {[%clk 0:00:17]} 46... Rxd4+ {[%clk 0:00:17]} 47. Kf3 {[%clk
0:00:16.3]} 47... Kxe5 {[%clk 0:00:17.9]} 48. Rxc6 {[%clk 0:00:15.9]} 48... Rb4
{[%clk 0:00:16.8]} 49. Rg6 {[%clk 0:00:15.1]} 49... Rxb5 {[%clk 0:00:14.7]} 50.
Rxg7 {[%clk 0:00:15.4]} 50... Rb3+ {[%clk 0:00:11.7]} 51. Kg4 {[%clk 0:00:14.5]}
51... Rb4+ {[%clk 0:00:12.2]} 52. Kg3 {[%clk 0:00:14.6]} 52... Rb3+ {[%clk
0:00:12.7]} 53. Kg4 {[%clk 0:00:14.8]} 53... Rb4+ {[%clk 0:00:13.2]} 54. Kg3
{[%clk 0:00:15.3]} 54... Rb3+ {[%clk 0:00:12.1]} 55. Kg4 {[%clk 0:00:15.5]}
1/2-1/2

[Event "*** Titled Tuesday Blitz"]
[Site "Chess.com"]
[Date "2020.11.10"]
[Round "3"]
[White "Grineva_Marianna"]
[Black "ShahMatKanal"]
[Result "0-1"]
[WhiteElo "2243"]
[BlackElo "2504"]
[TimeControl "180+1"]
[EndTime "10:32:23 PST"]
[Termination "ShahMatKanal won on time"]

1. e4 {[%clk 0:03:00.9]} 1... Nf6 {[%clk 0:02:57.5]} 2. e5 {[%clk 0:03:00.2]}
2... Nd5 {[%clk 0:02:57.7]} 3. d4 {[%clk 0:03:00.8]} 3... d6 {[%clk 0:02:57.5]}
4. Nf3 {[%clk 0:03:01.2]} 4... g6 {[%clk 0:02:57.6]} 5. Bc4 {[%clk 0:02:59.1]}
5... Nb6 {[%clk 0:02:57.3]} 6. Bb3 {[%clk 0:02:58.6]} 6... Bg7 {[%clk
0:02:57.1]} 7. Ng5 {[%clk 0:02:57]} 7... O-O {[%clk 0:02:46.3]} 8. Qf3 {[%clk
0:02:54.1]} 8... d5 {[%clk 0:02:30.2]} 9. h4 {[%clk 0:02:47.4]} 9... h5 {[%clk
0:02:24.5]} 10. Nc3 {[%clk 0:02:34.9]} 10... Nc6 {[%clk 0:02:06.8]} 11. Be3
{[%clk 0:02:31.2]} 11... Bg4 {[%clk 0:02:05.1]} 12. Qg3 {[%clk 0:02:23]} 12...
a5 {[%clk 0:01:59]} 13. a4 {[%clk 0:02:11]} 13... Nc4 {[%clk 0:01:28.8]} 14.
Bxc4 {[%clk 0:01:56.7]} 14... dxc4 {[%clk 0:01:28]} 15. f3 {[%clk 0:01:54.8]}
15... Nxd4 {[%clk 0:01:15.6]} 16. Bxd4 {[%clk 0:01:49.4]} 16... Qxd4 {[%clk
0:01:14.7]} 17. fxg4 {[%clk 0:01:48.8]} 17... Bxe5 {[%clk 0:01:14]} 18. Qf2
{[%clk 0:01:40.2]} 18... Qxg4 {[%clk 0:00:54.3]} 19. Rh3 {[%clk 0:01:38.3]}
19... Rad8 {[%clk 0:00:44]} 20. Kf1 {[%clk 0:01:29.3]} 20... Rd4 {[%clk
0:00:37]} 21. Re1 {[%clk 0:01:14.6]} 21... f6 {[%clk 0:00:28.2]} 22. Rf3 {[%clk
0:00:59.7]} 22... Rdd8 {[%clk 0:00:17.5]} 23. Nge4 {[%clk 0:00:29.4]} 23... b6
{[%clk 0:00:16.8]} 24. Nb5 {[%clk 0:00:18.2]} 24... Rd7 {[%clk 0:00:13.2]} 25.
c3 {[%clk 0:00:16]} 25... Rfd8 {[%clk 0:00:13.1]} 26. Nd4 {[%clk 0:00:15.4]}
26... Bxd4 {[%clk 0:00:12.3]} 27. cxd4 {[%clk 0:00:16.3]} 27... Rxd4 {[%clk
0:00:12.9]} 28. Nc3 {[%clk 0:00:11.6]} 28... R8d7 {[%clk 0:00:11.7]} 29. Rfe3
{[%clk 0:00:10]} 29... Kf7 {[%clk 0:00:09.7]} 30. Re4 {[%clk 0:00:08.6]} 30...
Rxe4 {[%clk 0:00:09.5]} 31. Rxe4 {[%clk 0:00:09.5]} 31... Rd1+ {[%clk
0:00:09.4]} 32. Nxd1 {[%clk 0:00:07.8]} 32... Qxe4 {[%clk 0:00:09.9]} 33. Nc3
{[%clk 0:00:06.9]} 33... Qd3+ {[%clk 0:00:09.9]} 34. Qe2 {[%clk 0:00:06.5]}
34... Qd4 {[%clk 0:00:10]} 35. Qe4 {[%clk 0:00:04.5]} 35... Qxe4 {[%clk
0:00:09]} 36. Nxe4 {[%clk 0:00:05.4]} 36... e5 {[%clk 0:00:08.9]} 37. Ke2 {[%clk
0:00:05]} 37... Ke6 {[%clk 0:00:08.8]} 38. Ke3 {[%clk 0:00:05.1]} 38... c6
{[%clk 0:00:08.4]} 39. Nd2 {[%clk 0:00:05]} 39... b5 {[%clk 0:00:08.9]} 40. axb5
{[%clk 0:00:04.2]} 40... cxb5 {[%clk 0:00:09.8]} 41. Nb1 {[%clk 0:00:02.4]}
41... b4 {[%clk 0:00:09.4]} 42. Kd2 {[%clk 0:00:02.9]} 42... Kd5 {[%clk
0:00:09.7]} 43. Kc2 {[%clk 0:00:03.4]} 43... e4 {[%clk 0:00:09]} 44. Nd2 {[%clk
0:00:03.8]} 44... f5 {[%clk 0:00:09]} 45. Kd1 {[%clk 0:00:03.6]} 45... f4 {[%clk
0:00:08.9]} 46. Ke2 {[%clk 0:00:04.1]} 46... a4 {[%clk 0:00:08.8]} 47. Nb1
{[%clk 0:00:03.4]} 47... Kd4 {[%clk 0:00:08.9]} 48. Nd2 {[%clk 0:00:02.3]} 48...
a3 {[%clk 0:00:08.1]} 0-1

[Event "*** Titled Tuesday Blitz"]
[Site "Chess.com"]
[Date "2020.11.10"]
[Round "3"]
[White "tsaruk_maks"]
[Black "atalz0"]
[Result "1-0"]
[WhiteElo "2622"]
[BlackElo "2402"]
[TimeControl "180+1"]
[EndTime "10:32:25 PST"]
[Termination "tsaruk_maks won on time"]

1. e4 {[%clk 0:03:00.9]} 1... d5 {[%clk 0:02:59]} 2. exd5 {[%clk 0:03:00.4]}
2... Nf6 {[%clk 0:02:59.2]} 3. d4 {[%clk 0:03:00.4]} 3... Nxd5 {[%clk
0:02:59.3]} 4. c4 {[%clk 0:02:59.2]} 4... Nb6 {[%clk 0:02:59.4]} 5. Nf3 {[%clk
0:02:59.3]} 5... Bg4 {[%clk 0:02:59.3]} 6. h3 {[%clk 0:02:56.9]} 6... Bxf3
{[%clk 0:02:57.2]} 7. Qxf3 {[%clk 0:02:54]} 7... Qxd4 {[%clk 0:02:57.6]} 8. Qxb7
{[%clk 0:02:16.3]} 8... e6 {[%clk 0:02:56.9]} 9. Nc3 {[%clk 0:01:45.2]} 9... Bb4
{[%clk 0:02:55.5]} 10. Bd2 {[%clk 0:01:40.7]} 10... Qe5+ {[%clk 0:02:38.9]} 11.
Be2 {[%clk 0:01:39.3]} 11... O-O {[%clk 0:02:33.2]} 12. f4 {[%clk 0:01:15.4]}
12... Qf6 {[%clk 0:02:16]} 13. a3 {[%clk 0:01:13.5]} 13... Qh4+ {[%clk
0:02:10.5]} 14. Kd1 {[%clk 0:01:01.6]} 14... Bd6 {[%clk 0:01:48.4]} 15. Qf3
{[%clk 0:00:34.2]} 15... Rd8 {[%clk 0:01:44]} 16. Kc2 {[%clk 0:00:33.3]} 16...
Na6 {[%clk 0:01:33.2]} 17. Rad1 {[%clk 0:00:27.7]} 17... Qe7 {[%clk 0:01:15.2]}
18. Nb5 {[%clk 0:00:21.1]} 18... Nc5 {[%clk 0:01:01.5]} 19. Bb4 {[%clk
0:00:07.5]} 19... a5 {[%clk 0:00:54.8]} 20. Bxc5 {[%clk 0:00:04.9]} 20... Bxc5
{[%clk 0:00:54.4]} 21. Qc6 {[%clk 0:00:05.5]} 21... Na4 {[%clk 0:00:39.3]} 22.
b3 {[%clk 0:00:04.5]} 22... Nb6 {[%clk 0:00:33.2]} 23. Qxc7 {[%clk 0:00:04.7]}
23... Qxc7 {[%clk 0:00:30.3]} 24. Nxc7 {[%clk 0:00:05]} 24... Bxa3 {[%clk
0:00:30.9]} 25. Nxa8 {[%clk 0:00:04.6]} 25... Rxa8 {[%clk 0:00:29.9]} 26. Bf3
{[%clk 0:00:05.1]} 26... Rc8 {[%clk 0:00:27.5]} 27. Ra1 {[%clk 0:00:04.5]} 27...
Bb4 {[%clk 0:00:27.2]} 28. Rhd1 {[%clk 0:00:05.1]} 28... g6 {[%clk 0:00:26.3]}
29. Kb2 {[%clk 0:00:04.8]} 29... a4 {[%clk 0:00:25.2]} 30. bxa4 {[%clk
0:00:04.9]} 30... Nxc4+ {[%clk 0:00:23.2]} 31. Kb3 {[%clk 0:00:05.4]} 31... Ba5
{[%clk 0:00:20.7]} 32. Rac1 {[%clk 0:00:04.7]} 32... Nd2+ {[%clk 0:00:19.5]} 33.
Ka2 {[%clk 0:00:04.4]} 33... Rb8 {[%clk 0:00:16.8]} 34. Bc6 {[%clk 0:00:04.6]}
34... Kg7 {[%clk 0:00:14.2]} 35. Bb5 {[%clk 0:00:04.5]} 35... Ne4 {[%clk
0:00:14]} 36. Rd3 {[%clk 0:00:04.8]} 36... Rb6 {[%clk 0:00:11.8]} 37. Rc4 {[%clk
0:00:04.5]} 37... f5 {[%clk 0:00:11.7]} 38. Kb3 {[%clk 0:00:02.8]} 38... Kf6
{[%clk 0:00:10.9]} 39. Rc8 {[%clk 0:00:02.6]} 39... Rb7 {[%clk 0:00:10.1]} 40.
Rc6 {[%clk 0:00:02.5]} 40... Re7 {[%clk 0:00:09.4]} 41. Kc2 {[%clk 0:00:02.8]}
41... Rb7 {[%clk 0:00:06.7]} 42. g4 {[%clk 0:00:03.2]} 42... fxg4 {[%clk
0:00:04.6]} 43. hxg4 {[%clk 0:00:03.4]} 43... g5 {[%clk 0:00:05.1]} 44. f5
{[%clk 0:00:03.9]} 44... Ke5 {[%clk 0:00:02]} 45. Rxe6+ {[%clk 0:00:03.9]} 45...
Kf4 {[%clk 0:00:02.3]} 46. Rd4 {[%clk 0:00:04.2]} 46... Rc7+ {[%clk 0:00:02.5]}
47. Kb1 {[%clk 0:00:03.6]} 1-0